[Event "*** Titled Tuesday Blitz"]
[Site "Chess.com"]
[Date "2019.11.05"]
[Round "4"]
[White "StephenDedalus83"]
[Black "wild_cat99"]
[Result "1-0"]
[WhiteElo "2811"]
[BlackElo "2395"]
[TimeControl "180+2"]
[EndTime "13:51:22 PST"]
[Termination "StephenDedalus83 won by resignation"]

1. e4 {[%clk 0:03:01.9]} 1... c5 {[%clk 0:03:00.7]} 2. Nf3 {[%clk 0:03:02.3]}
2... d6 {[%clk 0:03:01.6]} 3. d4 {[%clk 0:03:03.8]} 3... cxd4 {[%clk 0:03:03.5]}
4. Nxd4 {[%clk 0:03:05.3]} 4... Nf6 {[%clk 0:03:04.6]} 5. Nc3 {[%clk 0:03:06.9]}
5... a6 {[%clk 0:03:05.4]} 6. Bc4 {[%clk 0:03:06.9]} 6... e6 {[%clk 0:03:06.1]}
7. O-O {[%clk 0:03:07.6]} 7... b5 {[%clk 0:03:06.7]} 8. Bb3 {[%clk 0:03:07.8]}
8... Nbd7 {[%clk 0:03:06.2]} 9. Bxe6 {[%clk 0:03:06.8]} 9... fxe6 {[%clk
0:03:07]} 10. Nxe6 {[%clk 0:03:07.8]} 10... Qb6 {[%clk 0:03:07.9]} 11. Nd5
{[%clk 0:03:08.3]} 11... Nxd5 {[%clk 0:03:08.3]} 12. exd5 {[%clk 0:03:09.4]}
12... Ne5 {[%clk 0:03:08.8]} 13. Be3 {[%clk 0:03:08.4]} 13... Qb7 {[%clk
0:03:03.8]} 14. f4 {[%clk 0:03:09.2]} 14... Bxe6 {[%clk 0:03:00.6]} 15. dxe6
{[%clk 0:03:08.7]} 15... Nc4 {[%clk 0:03:00]} 16. Bd4 {[%clk 0:03:09.7]} 16...
O-O-O {[%clk 0:02:46.2]} 17. a4 {[%clk 0:03:10.4]} 17... b4 {[%clk 0:02:39.3]}
18. Qd3 {[%clk 0:03:10.7]} 18... d5 {[%clk 0:02:32.2]} 19. Rfe1 {[%clk
0:02:56.5]} 19... Bd6 {[%clk 0:02:25.9]} 20. f5 {[%clk 0:02:54.9]} 20... Qc6
{[%clk 0:01:57.8]} 21. b3 {[%clk 0:02:54.3]} 21... Na5 {[%clk 0:01:55.7]} 22.
Bxg7 {[%clk 0:02:51.4]} 22... Rhg8 {[%clk 0:01:55.9]} 23. f6 {[%clk 0:02:52.1]}
23... Qc5+ {[%clk 0:01:09.9]} 24. Kh1 {[%clk 0:02:51.5]} 24... Nc6 {[%clk
0:01:10.8]} 25. e7 {[%clk 0:02:50.3]} 25... Nxe7 {[%clk 0:01:10.5]} 26. fxe7
{[%clk 0:02:51]} 26... Bxe7 {[%clk 0:01:12.4]} 27. Qxa6+ {[%clk 0:02:51.3]}
27... Kc7 {[%clk 0:01:11.4]} 28. Bd4 {[%clk 0:02:48.4]} 28... Qxd4 {[%clk
0:01:06.6]} 29. Rxe7+ {[%clk 0:02:48.8]} 29... Rd7 {[%clk 0:01:07.6]} 30. Rae1
{[%clk 0:02:45.9]} 30... Rg6 {[%clk 0:01:01.5]} 31. Qa5+ {[%clk 0:02:45.6]}
31... Qb6 {[%clk 0:00:58.5]} 32. Rxd7+ {[%clk 0:02:42.3]} 32... Kxd7 {[%clk
0:00:59.6]} 33. Qxd5+ {[%clk 0:02:43.8]} 33... Rd6 {[%clk 0:00:57.4]} 34. Qf5+
{[%clk 0:02:42.5]} 34... Kc6 {[%clk 0:00:54.6]} 35. Qxh7 {[%clk 0:02:42.4]}
35... Qf2 {[%clk 0:00:50.3]} 36. Qe4+ {[%clk 0:02:41.7]} 36... Kc7 {[%clk
0:00:51.2]} 37. h3 {[%clk 0:02:38.6]} 37... Rd2 {[%clk 0:00:46.7]} 38. Rg1
{[%clk 0:02:35.6]} 38... Rxc2 {[%clk 0:00:42.6]} 39. Qxb4 {[%clk 0:02:36.1]}
39... Qf5 {[%clk 0:00:33.2]} 40. Qb5 {[%clk 0:02:33]} 40... Qe4 {[%clk
0:00:25.1]} 41. a5 {[%clk 0:02:27.1]} 41... Rc3 {[%clk 0:00:25.2]} 42. Qb6+
{[%clk 0:02:24]} 42... Kc8 {[%clk 0:00:24.9]} 43. Qh6 {[%clk 0:02:20.1]} 43...
Rxb3 {[%clk 0:00:21.4]} 44. Rc1+ {[%clk 0:02:20.7]} 44... Kb7 {[%clk 0:00:20.4]}
45. a6+ {[%clk 0:02:20.1]} 45... Ka7 {[%clk 0:00:18.7]} 46. Qg7+ {[%clk
0:02:09.2]} 46... Kxa6 {[%clk 0:00:19.3]} 47. Qf6+ {[%clk 0:02:07.8]} 47... Kb5
{[%clk 0:00:19.3]} 48. Qf1+ {[%clk 0:02:06.5]} 48... Kb6 {[%clk 0:00:13]} 49.
Qf2+ {[%clk 0:02:07.1]} 49... Re3 {[%clk 0:00:10.3]} 50. Re1 {[%clk 0:02:07.2]}
1-0

[Event "*** Titled Tuesday Blitz"]
[Site "Chess.com"]
[Date "2019.11.05"]
[Round "4"]
[White "marianokar"]
[Black "snowlord"]
[Result "0-1"]
[WhiteElo "2472"]
[BlackElo "2731"]
[TimeControl "180+2"]
[EndTime "13:51:23 PST"]
[Termination "snowlord won on time"]

1. e4 {[%clk 0:03:01.9]} 1... e5 {[%clk 0:02:59.8]} 2. Nf3 {[%clk 0:03:02.1]}
2... Nc6 {[%clk 0:03:01.7]} 3. Bb5 {[%clk 0:03:02.8]} 3... a6 {[%clk 0:03:02.9]}
4. Ba4 {[%clk 0:03:03.8]} 4... Nf6 {[%clk 0:03:03.4]} 5. O-O {[%clk 0:03:05.1]}
5... Be7 {[%clk 0:03:03.5]} 6. Re1 {[%clk 0:03:04.1]} 6... b5 {[%clk 0:03:04.6]}
7. Bb3 {[%clk 0:03:05.2]} 7... d6 {[%clk 0:03:06.2]} 8. c3 {[%clk 0:03:05.1]}
8... O-O {[%clk 0:03:07.3]} 9. d3 {[%clk 0:03:06]} 9... Na5 {[%clk 0:03:07.2]}
10. Bc2 {[%clk 0:03:06.5]} 10... c5 {[%clk 0:03:08.9]} 11. Nbd2 {[%clk 0:03:08]}
11... Nc6 {[%clk 0:03:09.4]} 12. Nf1 {[%clk 0:03:09.4]} 12... Re8 {[%clk
0:03:09.8]} 13. h3 {[%clk 0:03:08.6]} 13... Bf8 {[%clk 0:03:10.8]} 14. d4 {[%clk
0:02:59.4]} 14... cxd4 {[%clk 0:03:10.8]} 15. cxd4 {[%clk 0:02:58]} 15... exd4
{[%clk 0:03:12.7]} 16. Nxd4 {[%clk 0:02:58.4]} 16... Nxd4 {[%clk 0:03:14.6]} 17.
Qxd4 {[%clk 0:02:59.1]} 17... g6 {[%clk 0:03:16.5]} 18. Bf4 {[%clk 0:02:47.7]}
18... Nh5 {[%clk 0:03:11.2]} 19. Bh2 {[%clk 0:02:43.2]} 19... Bb7 {[%clk
0:03:08.6]} 20. Rad1 {[%clk 0:02:39.1]} 20... Qg5 {[%clk 0:02:50.5]} 21. Bb3
{[%clk 0:02:26.3]} 21... Rad8 {[%clk 0:02:35.5]} 22. Bd5 {[%clk 0:02:23.9]}
22... Bg7 {[%clk 0:02:33.5]} 23. Qd2 {[%clk 0:02:20.5]} 23... Qxd2 {[%clk
0:02:34.3]} 24. Rxd2 {[%clk 0:02:21.8]} 24... Bxd5 {[%clk 0:02:35.4]} 25. Rxd5
{[%clk 0:02:22.7]} 25... Nf6 {[%clk 0:02:36.7]} 26. Rd4 {[%clk 0:02:09]} 26...
Ng4 {[%clk 0:01:53.6]} 27. Rxd6 {[%clk 0:01:28.2]} 27... Nxh2 {[%clk 0:01:54.1]}
28. Rxd8 {[%clk 0:01:29.6]} 28... Rxd8 {[%clk 0:01:55.5]} 29. Kxh2 {[%clk
0:01:30.9]} 29... Bxb2 {[%clk 0:01:42.5]} 30. Re2 {[%clk 0:01:31.2]} 30... Bc3
{[%clk 0:01:39.2]} 31. Ne3 {[%clk 0:01:29.7]} 31... Rd2 {[%clk 0:01:23.6]} 32.
Rxd2 {[%clk 0:01:24]} 32... Bxd2 {[%clk 0:01:25.5]} 33. Nd5 {[%clk 0:01:25.2]}
33... a5 {[%clk 0:01:26.6]} 34. Kg3 {[%clk 0:01:26.3]} 34... a4 {[%clk
0:01:22.5]} 35. Kf3 {[%clk 0:01:27.3]} 35... b4 {[%clk 0:01:21.4]} 36. Ke2
{[%clk 0:01:28.7]} 36... b3 {[%clk 0:01:17.8]} 37. axb3 {[%clk 0:01:28.3]} 37...
a3 {[%clk 0:01:18.8]} 0-1

[Event "*** Titled Tuesday Blitz"]
[Site "Chess.com"]
[Date "2019.11.05"]
[Round "4"]
[White "VerdeNotte"]
[Black "1995Tiger"]
[Result "0-1"]
[WhiteElo "2757"]
[BlackElo "2112"]
[TimeControl "180+2"]
[EndTime "13:51:28 PST"]
[Termination "1995Tiger won by resignation"]

1. e4 {[%clk 0:03:01.9]} 1... c5 {[%clk 0:03:01]} 2. Nf3 {[%clk 0:03:01.3]} 2...
Nc6 {[%clk 0:03:02.5]} 3. c3 {[%clk 0:03:01]} 3... Nf6 {[%clk 0:03:02.6]} 4. e5
{[%clk 0:03:01.8]} 4... Nd5 {[%clk 0:03:03.8]} 5. Bc4 {[%clk 0:03:03.2]} 5...
Nb6 {[%clk 0:03:04.1]} 6. Bb3 {[%clk 0:03:04.5]} 6... d5 {[%clk 0:03:01.6]} 7.
exd6 {[%clk 0:03:05.4]} 7... Qxd6 {[%clk 0:03:02.8]} 8. d4 {[%clk 0:03:04.4]}
8... cxd4 {[%clk 0:03:00.6]} 9. cxd4 {[%clk 0:03:00]} 9... Be6 {[%clk
0:02:59.4]} 10. Nc3 {[%clk 0:02:55.8]} 10... Bxb3 {[%clk 0:02:55.9]} 11. Qxb3
{[%clk 0:02:56.7]} 11... e6 {[%clk 0:02:55]} 12. O-O {[%clk 0:02:41.4]} 12...
Be7 {[%clk 0:02:49.2]} 13. Ne4 {[%clk 0:02:31.7]} 13... Qd5 {[%clk 0:02:43.1]}
14. Qd3 {[%clk 0:02:29.3]} 14... O-O {[%clk 0:02:36.7]} 15. Nfg5 {[%clk
0:02:21.4]} 15... f5 {[%clk 0:02:27.8]} 16. Qh3 {[%clk 0:02:10.4]} 16... h6
{[%clk 0:02:11.6]} 17. Nc3 {[%clk 0:02:11.6]} 17... Qd6 {[%clk 0:02:07.7]} 18.
Nb5 {[%clk 0:02:07.4]} 18... Qd7 {[%clk 0:02:04.7]} 19. Nf3 {[%clk 0:02:02.9]}
19... a6 {[%clk 0:01:59.6]} 20. Nc3 {[%clk 0:02:01.2]} 20... Bf6 {[%clk
0:02:00.6]} 21. Rd1 {[%clk 0:01:57.7]} 21... Nd5 {[%clk 0:02:01.3]} 22. Nxd5
{[%clk 0:01:57.1]} 22... Qxd5 {[%clk 0:02:03.2]} 23. Be3 {[%clk 0:01:58.1]}
23... Rac8 {[%clk 0:02:00.3]} 24. a3 {[%clk 0:01:59]} 24... Rfd8 {[%clk
0:01:56.7]} 25. Qg3 {[%clk 0:01:57.6]} 25... Kh7 {[%clk 0:01:54.7]} 26. h4
{[%clk 0:01:58]} 26... Qe4 {[%clk 0:01:48.4]} 27. Rd2 {[%clk 0:01:45.5]} 27...
Qg4 {[%clk 0:01:42.3]} 28. Rad1 {[%clk 0:01:39.1]} 28... Qxg3 {[%clk 0:01:37.4]}
29. fxg3 {[%clk 0:01:41]} 29... Na5 {[%clk 0:01:35.9]} 30. Rd3 {[%clk
0:01:38.5]} 30... Rc2 {[%clk 0:01:34.3]} 31. R1d2 {[%clk 0:01:37.3]} 31... Rxd2
{[%clk 0:01:14.9]} 32. Bxd2 {[%clk 0:01:39.2]} 32... Nc4 {[%clk 0:01:10.3]} 33.
Bc3 {[%clk 0:01:37.2]} 33... e5 {[%clk 0:01:08.6]} 34. Rd1 {[%clk 0:01:37.8]}
34... e4 {[%clk 0:01:06.1]} 35. Nd2 {[%clk 0:01:39]} 35... Bxd4+ {[%clk
0:01:03.6]} 36. Bxd4 {[%clk 0:01:30.9]} 36... Rxd4 {[%clk 0:01:05.5]} 37. Nxc4
{[%clk 0:01:32.4]} 37... Rxd1+ {[%clk 0:01:06.2]} 38. Kf2 {[%clk 0:01:34]} 38...
Rd3 {[%clk 0:01:02.4]} 39. Ke2 {[%clk 0:01:29]} 39... Rxg3 {[%clk 0:00:58.8]}
40. Kf2 {[%clk 0:01:30.5]} 40... f4 {[%clk 0:00:57.1]} 41. Nd6 {[%clk
0:01:29.8]} 41... e3+ {[%clk 0:00:57.9]} 42. Kf1 {[%clk 0:01:31.3]} 42... e2+
{[%clk 0:00:59.2]} 43. Kxe2 {[%clk 0:01:31.7]} 43... Rxg2+ {[%clk 0:01:00.5]}
44. Kf3 {[%clk 0:01:33.1]} 44... Rxb2 {[%clk 0:01:01.6]} 45. Kxf4 {[%clk
0:01:34.7]} 45... b5 {[%clk 0:01:01.9]} 46. Ne4 {[%clk 0:01:22.5]} 46... Rb3
{[%clk 0:01:00.1]} 47. Ke5 {[%clk 0:01:23.9]} 47... Rxa3 {[%clk 0:00:59.2]} 48.
Nc5 {[%clk 0:01:25.3]} 48... Rh3 {[%clk 0:00:57.7]} 49. Nxa6 {[%clk 0:01:26.2]}
49... Rxh4 {[%clk 0:00:58.8]} 50. Kd5 {[%clk 0:01:14.8]} 50... b4 {[%clk
0:00:57.6]} 51. Nc5 {[%clk 0:01:15.6]} 51... Rh5+ {[%clk 0:00:58.3]} 52. Kc4
{[%clk 0:01:16.4]} 52... Rxc5+ {[%clk 0:00:59.8]} 0-1

[Event "*** Titled Tuesday Blitz"]
[Site "Chess.com"]
[Date "2019.11.05"]
[Round "4"]
[White "Misha_Bilous"]
[Black "mjray79"]
[Result "1-0"]
[WhiteElo "2490"]
[BlackElo "2208"]
[TimeControl "180+2"]
[EndTime "13:51:30 PST"]
[Termination "Misha_Bilous won by resignation"]

1. d4 {[%clk 0:03:01.9]} 1... Nf6 {[%clk 0:02:58.8]} 2. c4 {[%clk 0:02:59]} 2...
g6 {[%clk 0:02:59.5]} 3. f3 {[%clk 0:02:59.6]} 3... Bg7 {[%clk 0:03:00.7]} 4. e4
{[%clk 0:03:00.5]} 4... d6 {[%clk 0:03:01.8]} 5. Nc3 {[%clk 0:03:00.7]} 5... O-O
{[%clk 0:03:00.8]} 6. Be3 {[%clk 0:03:02.1]} 6... c5 {[%clk 0:02:59.7]} 7. Nge2
{[%clk 0:03:02.9]} 7... Nc6 {[%clk 0:02:53.4]} 8. d5 {[%clk 0:03:04]} 8... Ne5
{[%clk 0:02:52.6]} 9. Ng3 {[%clk 0:03:05.2]} 9... b5 {[%clk 0:02:48.1]} 10. cxb5
{[%clk 0:03:01.1]} 10... a6 {[%clk 0:02:47.5]} 11. bxa6 {[%clk 0:03:00.2]} 11...
Bxa6 {[%clk 0:02:47.1]} 12. Bxa6 {[%clk 0:03:01.2]} 12... Rxa6 {[%clk
0:02:48.3]} 13. O-O {[%clk 0:02:54.6]} 13... Qb6 {[%clk 0:02:41.7]} 14. Qe2
{[%clk 0:02:51.6]} 14... Qb7 {[%clk 0:02:38.9]} 15. Nb5 {[%clk 0:02:41.8]} 15...
c4 {[%clk 0:02:27]} 16. a4 {[%clk 0:02:38.5]} 16... Rfa8 {[%clk 0:02:25]} 17.
Qc2 {[%clk 0:02:20.8]} 17... Nfd7 {[%clk 0:02:14.4]} 18. f4 {[%clk 0:01:56.7]}
18... Nd3 {[%clk 0:02:13.2]} 19. Qxc4 {[%clk 0:01:57.4]} 19... Nxb2 {[%clk
0:02:13]} 20. Qc7 {[%clk 0:01:58.5]} 20... Qxc7 {[%clk 0:01:44.2]} 21. Nxc7
{[%clk 0:01:58.7]} 21... Nc4 {[%clk 0:01:44.7]} 22. Nxa6 {[%clk 0:01:16.3]}
22... Bxa1 {[%clk 0:01:40.8]} 23. Rxa1 {[%clk 0:01:09.4]} 23... Rxa6 {[%clk
0:01:39.1]} 24. Bd4 {[%clk 0:01:04.9]} 24... Nc5 {[%clk 0:01:19]} 25. Bxc5
{[%clk 0:00:39.5]} 25... dxc5 {[%clk 0:01:18.9]} 26. e5 {[%clk 0:00:39.1]} 26...
Ne3 {[%clk 0:00:55.2]} 27. Ne4 {[%clk 0:00:38.7]} 27... c4 {[%clk 0:00:33.5]}
28. d6 {[%clk 0:00:35.3]} 28... exd6 {[%clk 0:00:33.3]} 29. exd6 {[%clk
0:00:36.4]} 29... Nf5 {[%clk 0:00:31.1]} 30. d7 {[%clk 0:00:35.1]} 30... Ra8
{[%clk 0:00:31]} 31. Rc1 {[%clk 0:00:32.6]} 31... Kf8 {[%clk 0:00:24.3]} 32.
Rxc4 {[%clk 0:00:29.3]} 32... Ke7 {[%clk 0:00:25.1]} 33. Rc8 {[%clk 0:00:30.2]}
1-0

[Event "*** Titled Tuesday Blitz"]
[Site "Chess.com"]
[Date "2019.11.05"]
[Round "4"]
[White "esskeettit"]
[Black "sofaceindisguise"]
[Result "1-0"]
[WhiteElo "2430"]
[BlackElo "2580"]
[TimeControl "180+2"]
[EndTime "13:51:36 PST"]
[Termination "esskeettit won by resignation"]

1. e4 {[%clk 0:03:01.9]} 1... c5 {[%clk 0:02:57.6]} 2. Nf3 {[%clk 0:02:59.6]}
2... d6 {[%clk 0:02:57.4]} 3. d4 {[%clk 0:02:56.1]} 3... cxd4 {[%clk 0:02:59.3]}
4. Qxd4 {[%clk 0:02:51.7]} 4... a6 {[%clk 0:02:59.9]} 5. c4 {[%clk 0:02:41.5]}
5... Nf6 {[%clk 0:02:59.2]} 6. h3 {[%clk 0:02:37.6]} 6... e6 {[%clk 0:02:59.5]}
7. Nc3 {[%clk 0:02:36.8]} 7... Qc7 {[%clk 0:03:00.5]} 8. Be2 {[%clk 0:02:35.4]}
8... Be7 {[%clk 0:03:01.9]} 9. O-O {[%clk 0:02:35.7]} 9... O-O {[%clk
0:03:03.5]} 10. b3 {[%clk 0:02:33.5]} 10... b6 {[%clk 0:03:03.9]} 11. Bb2 {[%clk
0:02:29.5]} 11... Nbd7 {[%clk 0:03:02.8]} 12. Qe3 {[%clk 0:02:22.1]} 12... Bb7
{[%clk 0:03:03.4]} 13. Rfd1 {[%clk 0:01:56.8]} 13... Rfe8 {[%clk 0:03:03.5]} 14.
Rac1 {[%clk 0:01:49.7]} 14... Rac8 {[%clk 0:03:04.1]} 15. Nd2 {[%clk 0:01:42.7]}
15... Qb8 {[%clk 0:03:04.7]} 16. Nf1 {[%clk 0:01:41.4]} 16... Ba8 {[%clk
0:03:04]} 17. Ng3 {[%clk 0:01:41.5]} 17... Bf8 {[%clk 0:03:02.4]} 18. Kh1 {[%clk
0:01:35.9]} 18... d5 {[%clk 0:02:59.8]} 19. exd5 {[%clk 0:01:24.4]} 19... exd5
{[%clk 0:02:58.9]} 20. Qd2 {[%clk 0:01:22.9]} 20... dxc4 {[%clk 0:02:51.5]} 21.
Bxc4 {[%clk 0:01:23.1]} 21... Ne5 {[%clk 0:02:52.7]} 22. Bxa6 {[%clk 0:01:19.2]}
22... Rcd8 {[%clk 0:02:52.2]} 23. Qg5 {[%clk 0:01:09.3]} 23... Rxd1+ {[%clk
0:02:47.7]} 24. Rxd1 {[%clk 0:01:07.4]} 24... h6 {[%clk 0:02:49.1]} 25. Qf5
{[%clk 0:01:06.6]} 25... Bxg2+ {[%clk 0:02:25]} 26. Kxg2 {[%clk 0:01:04.5]}
26... Qa8+ {[%clk 0:02:26]} 27. Nce4 {[%clk 0:00:57.1]} 27... Nxe4 {[%clk
0:02:25.6]} 28. Qxe4 {[%clk 0:00:44.4]} 28... Qxa6 {[%clk 0:02:23.5]} 29. Bxe5
{[%clk 0:00:44.2]} 29... Qa5 {[%clk 0:02:11]} 30. Rd5 {[%clk 0:00:41.7]} 30...
Qxa2 {[%clk 0:02:11.9]} 31. Qa4 {[%clk 0:00:27.2]} 31... Qxa4 {[%clk 0:01:52.9]}
32. bxa4 {[%clk 0:00:29.1]} 32... Ra8 {[%clk 0:01:53.3]} 33. Rd4 {[%clk
0:00:22.8]} 33... f6 {[%clk 0:01:51.5]} 34. Bc7 {[%clk 0:00:20.9]} 34... Bc5
{[%clk 0:01:52]} 35. Rd8+ {[%clk 0:00:20.1]} 35... Rxd8 {[%clk 0:01:52]} 36.
Bxd8 {[%clk 0:00:22]} 36... Kf7 {[%clk 0:01:53.6]} 37. Ne4 {[%clk 0:00:23.5]}
37... Bd4 {[%clk 0:01:54.4]} 38. Nd6+ {[%clk 0:00:22.7]} 38... Ke6 {[%clk
0:01:54.6]} 39. Nc4 {[%clk 0:00:24.2]} 39... Kd5 {[%clk 0:01:52.6]} 40. Nxb6+
{[%clk 0:00:23.1]} 40... Kc6 {[%clk 0:01:54]} 41. Nc4 {[%clk 0:00:23.8]} 41...
Kd7 {[%clk 0:01:55.3]} 42. Bb6 {[%clk 0:00:23.7]} 42... Bc3 {[%clk 0:01:56.2]}
43. a5 {[%clk 0:00:23]} 43... Kc6 {[%clk 0:01:57.7]} 44. Kf3 {[%clk 0:00:20.3]}
44... f5 {[%clk 0:01:57.8]} 45. Kf4 {[%clk 0:00:21.2]} 45... g6 {[%clk
0:01:57.5]} 46. Ne5+ {[%clk 0:00:22.3]} 46... Kd5 {[%clk 0:01:57.6]} 47. Nxg6
{[%clk 0:00:23]} 47... Ke6 {[%clk 0:01:58.1]} 48. a6 {[%clk 0:00:23.6]} 48...
Bd2+ {[%clk 0:01:56.9]} 49. Kf3 {[%clk 0:00:23.5]} 1-0

[Event "*** Titled Tuesday Blitz"]
[Site "Chess.com"]
[Date "2019.11.05"]
[Round "4"]
[White "HrvojeZagreb"]
[Black "Bishops83"]
[Result "1-0"]
[WhiteElo "2172"]
[BlackElo "2266"]
[TimeControl "180+2"]
[EndTime "13:51:41 PST"]
[Termination "HrvojeZagreb won by resignation"]

1. d4 {[%clk 0:03:01.9]} 1... d5 {[%clk 0:03:00.7]} 2. Bf4 {[%clk 0:03:02.9]}
2... c5 {[%clk 0:02:58.4]} 3. e3 {[%clk 0:03:03.2]} 3... Nf6 {[%clk 0:02:58.6]}
4. Nc3 {[%clk 0:03:04.3]} 4... a6 {[%clk 0:02:54.8]} 5. dxc5 {[%clk 0:03:03.6]}
5... Nc6 {[%clk 0:02:52.3]} 6. Nf3 {[%clk 0:03:04.6]} 6... e6 {[%clk 0:02:51.6]}
7. Na4 {[%clk 0:03:03.8]} 7... Bxc5 {[%clk 0:02:15.6]} 8. Nxc5 {[%clk
0:03:05.7]} 8... Qa5+ {[%clk 0:02:16.7]} 9. c3 {[%clk 0:03:06.2]} 9... Qxc5
{[%clk 0:02:17.6]} 10. Bd3 {[%clk 0:03:06.4]} 10... O-O {[%clk 0:02:17.5]} 11.
O-O {[%clk 0:03:06.3]} 11... Re8 {[%clk 0:02:18.1]} 12. Ne5 {[%clk 0:03:06.6]}
12... Nxe5 {[%clk 0:02:13.3]} 13. Bxe5 {[%clk 0:03:08.5]} 13... Nd7 {[%clk
0:02:14.6]} 14. Bg3 {[%clk 0:02:55.5]} 14... e5 {[%clk 0:02:09.3]} 15. e4 {[%clk
0:02:56.3]} 15... d4 {[%clk 0:01:59.8]} 16. Rc1 {[%clk 0:02:53.4]} 16... dxc3
{[%clk 0:01:40.1]} 17. Rxc3 {[%clk 0:02:52.5]} 17... Qb6 {[%clk 0:01:40.9]} 18.
Qe2 {[%clk 0:02:43.9]} 18... Nc5 {[%clk 0:01:40.2]} 19. Bb1 {[%clk 0:02:43.9]}
19... Bd7 {[%clk 0:01:19]} 20. Rfc1 {[%clk 0:02:43.2]} 20... Rac8 {[%clk
0:01:16]} 21. a3 {[%clk 0:02:16]} 21... Rc6 {[%clk 0:01:07.8]} 22. Qh5 {[%clk
0:02:07.3]} 22... Qxb2 {[%clk 0:00:34.6]} 23. Bxe5 {[%clk 0:01:57.2]} 23... Nxe4
{[%clk 0:00:19.7]} 24. Rxc6 {[%clk 0:01:34.2]} 24... Qxf2+ {[%clk 0:00:20.6]}
25. Kh1 {[%clk 0:01:33.4]} 25... Bxc6 {[%clk 0:00:22.1]} 26. Bxe4 {[%clk
0:01:01.8]} 26... Bxe4 {[%clk 0:00:21.2]} 27. Rg1 {[%clk 0:01:02.2]} 27... g6
{[%clk 0:00:20.3]} 28. Qg5 {[%clk 0:00:58.7]} 28... h6 {[%clk 0:00:19.9]} 29.
Qg3 {[%clk 0:00:45]} 29... Qxg3 {[%clk 0:00:20.9]} 30. Bxg3 {[%clk 0:00:46.9]}
30... Kg7 {[%clk 0:00:21.2]} 31. Rc1 {[%clk 0:00:46.7]} 31... Bc6 {[%clk
0:00:21.9]} 32. Rc2 {[%clk 0:00:41.6]} 32... Re3 {[%clk 0:00:21.4]} 33. Ra2
{[%clk 0:00:32.9]} 33... Bd5 {[%clk 0:00:22.4]} 34. Rd2 {[%clk 0:00:32.8]} 34...
Bc6 {[%clk 0:00:22.9]} 35. Ra2 {[%clk 0:00:33.6]} 35... Rc3 {[%clk 0:00:23.8]}
36. Be5+ {[%clk 0:00:27.2]} 36... f6 {[%clk 0:00:24.2]} 37. Bxc3 {[%clk
0:00:28.3]} 37... Kf7 {[%clk 0:00:26.1]} 38. Rf2 {[%clk 0:00:28.6]} 1-0

[Event "*** Titled Tuesday Blitz"]
[Site "Chess.com"]
[Date "2019.11.05"]
[Round "4"]
[White "swisspower96"]
[Black "RainForestt"]
[Result "0-1"]
[WhiteElo "2704"]
[BlackElo "2541"]
[TimeControl "180+2"]
[EndTime "13:51:47 PST"]
[Termination "RainForestt won by resignation"]

1. d4 {[%clk 0:03:01.9]} 1... d5 {[%clk 0:02:58.2]} 2. c4 {[%clk 0:03:03]} 2...
c6 {[%clk 0:02:57]} 3. Nf3 {[%clk 0:03:03.6]} 3... Nf6 {[%clk 0:02:56.1]} 4. e3
{[%clk 0:03:02.7]} 4... a6 {[%clk 0:02:56.8]} 5. Nc3 {[%clk 0:02:56.4]} 5... b5
{[%clk 0:02:45.1]} 6. b3 {[%clk 0:02:54.4]} 6... Bf5 {[%clk 0:02:39.1]} 7. Bd2
{[%clk 0:02:45.7]} 7... Nbd7 {[%clk 0:02:33.6]} 8. Be2 {[%clk 0:02:46.1]} 8...
e6 {[%clk 0:02:31.8]} 9. O-O {[%clk 0:02:45.9]} 9... h6 {[%clk 0:02:21.6]} 10.
Ne1 {[%clk 0:02:32.6]} 10... Bd6 {[%clk 0:02:17.3]} 11. f4 {[%clk 0:02:33.8]}
11... O-O {[%clk 0:02:12.4]} 12. g4 {[%clk 0:02:28.9]} 12... Bg6 {[%clk
0:02:08.6]} 13. Kh1 {[%clk 0:02:20]} 13... b4 {[%clk 0:02:07]} 14. Na4 {[%clk
0:02:12.1]} 14... a5 {[%clk 0:02:06.9]} 15. f5 {[%clk 0:02:07.3]} 15... exf5
{[%clk 0:02:04.5]} 16. gxf5 {[%clk 0:02:08.5]} 16... Bh7 {[%clk 0:02:04.1]} 17.
Bd3 {[%clk 0:02:03.9]} 17... Ne4 {[%clk 0:01:58.1]} 18. Bxe4 {[%clk 0:01:55.7]}
18... Qh4 {[%clk 0:01:33.1]} 19. Rf4 {[%clk 0:01:44.5]} 19... Bxf4 {[%clk
0:01:30.5]} 20. Nf3 {[%clk 0:01:45.7]} 20... Qg4 {[%clk 0:01:31]} 21. cxd5
{[%clk 0:01:44.7]} 21... Bxe3 {[%clk 0:01:27]} 22. Bxe3 {[%clk 0:01:03.9]} 22...
Qxe4 {[%clk 0:01:22.2]} 23. dxc6 {[%clk 0:01:04.8]} 23... Qxe3 {[%clk 0:01:17]}
24. cxd7 {[%clk 0:01:05]} 24... Bxf5 {[%clk 0:01:17.3]} 25. Nc5 {[%clk 0:01:04]}
25... Bg4 {[%clk 0:01:15]} 26. Kg2 {[%clk 0:01:02.9]} 26... Bxf3+ {[%clk
0:01:13.6]} 27. Qxf3 {[%clk 0:01:03.6]} 27... Qxd4 {[%clk 0:01:13.7]} 28. Rc1
{[%clk 0:00:21.1]} 28... Qd2+ {[%clk 0:00:42.1]} 29. Kh3 {[%clk 0:00:20.7]}
29... Qxc1 {[%clk 0:00:38.7]} 30. Nb7 {[%clk 0:00:22]} 30... Ra6 {[%clk
0:00:33]} 31. d8=Q {[%clk 0:00:20.1]} 31... Rxd8 {[%clk 0:00:31.2]} 32. Nxd8
{[%clk 0:00:20.7]} 32... Qc3 {[%clk 0:00:30.8]} 33. Kg2 {[%clk 0:00:18.6]} 33...
Rg6+ {[%clk 0:00:26.7]} 0-1